[Event "Early-Titled-Tuesday-Blitz-April-23-2024"]
[Site "Chess.com"]
[Date "2024.04.23"]
[Round "6"]
[White "CrgKrishna"]
[Black "Bilan_Danila"]
[Result "1-0"]
[WhiteElo "2717"]
[BlackElo "2549"]
[TimeControl "180+1"]
[EndTime "9:09:52 PDT"]
[Termination "CrgKrishna won by resignation"]

1. d4 {[%clk 0:03:00.9]} 1... d5 {[%clk 0:02:58.6]} 2. c4 {[%clk 0:02:59.8]}
2... c6 {[%clk 0:02:58.8]} 3. Nf3 {[%clk 0:02:59.1]} 3... Nf6 {[%clk 0:02:59.1]}
4. g3 {[%clk 0:02:58.4]} 4... Bf5 {[%clk 0:02:59]} 5. Bg2 {[%clk 0:02:56.4]}
5... e6 {[%clk 0:02:59.5]} 6. O-O {[%clk 0:02:56.7]} 6... Bd6 {[%clk 0:02:57.4]}
7. Nc3 {[%clk 0:02:56.6]} 7... Nbd7 {[%clk 0:02:57.2]} 8. Nd2 {[%clk 0:02:51.7]}
8... O-O {[%clk 0:02:37.8]} 9. e4 {[%clk 0:02:51.5]} 9... dxe4 {[%clk
0:02:38.7]} 10. Ndxe4 {[%clk 0:02:52]} 10... Nxe4 {[%clk 0:02:31.9]} 11. Nxe4
{[%clk 0:02:52.9]} 11... Nf6 {[%clk 0:02:14.9]} 12. Nxd6 {[%clk 0:02:21.2]}
12... Qxd6 {[%clk 0:02:15.8]} 13. Bf4 {[%clk 0:02:21.4]} 13... Qb4 {[%clk
0:02:07.8]} 14. Qe2 {[%clk 0:02:21.4]} 14... Rad8 {[%clk 0:02:02.2]} 15. Rfd1
{[%clk 0:02:19.1]} 15... Bg4 {[%clk 0:01:59.6]} 16. f3 {[%clk 0:02:18.7]} 16...
Bf5 {[%clk 0:01:56.6]} 17. Bg5 {[%clk 0:02:15.2]} 17... Rd7 {[%clk 0:01:45.8]}
18. h4 {[%clk 0:01:59.3]} 18... Bg6 {[%clk 0:00:57.4]} 19. Rd2 {[%clk
0:01:36.4]} 19... b5 {[%clk 0:00:44.4]} 20. cxb5 {[%clk 0:01:30]} 20... cxb5
{[%clk 0:00:44.9]} 21. a3 {[%clk 0:01:25.8]} 21... Qa4 {[%clk 0:00:37.9]} 22. g4
{[%clk 0:01:21.4]} 22... Rxd4 {[%clk 0:00:28]} 23. Rxd4 {[%clk 0:01:13]} 23...
Qxd4+ {[%clk 0:00:26.7]} 24. Be3 {[%clk 0:01:13.9]} 24... Qd3 {[%clk 0:00:20.2]}
25. Qxd3 {[%clk 0:01:03.7]} 25... Bxd3 {[%clk 0:00:21.1]} 26. Bxa7 {[%clk
0:01:04]} 26... Nd5 {[%clk 0:00:21.8]} 27. Rc1 {[%clk 0:00:55.6]} 27... h5
{[%clk 0:00:20.1]} 28. Bf1 {[%clk 0:00:50.2]} 28... Bxf1 {[%clk 0:00:17.8]} 29.
Kxf1 {[%clk 0:00:51.1]} 29... hxg4 {[%clk 0:00:18.1]} 30. fxg4 {[%clk
0:00:51.8]} 30... Ra8 {[%clk 0:00:13.7]} 31. Bc5 {[%clk 0:00:48.3]} 31... Rc8
{[%clk 0:00:13.7]} 32. Ke2 {[%clk 0:00:45.1]} 32... f6 {[%clk 0:00:13.1]} 33.
Be3 {[%clk 0:00:30.8]} 33... Ra8 {[%clk 0:00:05]} 34. Bd2 {[%clk 0:00:30.4]}
34... Kf7 {[%clk 0:00:05.1]} 35. Rc5 {[%clk 0:00:29.7]} 35... Rb8 {[%clk
0:00:04.9]} 36. h5 {[%clk 0:00:24.7]} 36... Ke7 {[%clk 0:00:05.2]} 37. Rc6
{[%clk 0:00:18.3]} 37... Rb7 {[%clk 0:00:05.4]} 38. Ra6 {[%clk 0:00:14.1]} 38...
Kf7 {[%clk 0:00:04.9]} 39. b3 {[%clk 0:00:13.6]} 39... Rc7 {[%clk 0:00:03.3]}
40. Kd3 {[%clk 0:00:13.2]} 40... Rd7 {[%clk 0:00:03.3]} 41. Kc2 {[%clk
0:00:12.2]} 41... Rc7+ {[%clk 0:00:03.5]} 42. Kd3 {[%clk 0:00:11.7]} 42... Rd7
{[%clk 0:00:03.6]} 43. Ke2 {[%clk 0:00:12.4]} 43... Rb7 {[%clk 0:00:04]} 44. g5
{[%clk 0:00:06.9]} 44... e5 {[%clk 0:00:03.9]} 45. g6+ {[%clk 0:00:06.7]} 45...
Ke7 {[%clk 0:00:03.2]} 46. h6 {[%clk 0:00:06.4]} 46... gxh6 {[%clk 0:00:03.3]}
47. Bxh6 {[%clk 0:00:07.3]} 47... Rb8 {[%clk 0:00:03.5]} 48. g7 {[%clk
0:00:07.1]} 48... Kf7 {[%clk 0:00:02.7]} 49. Ra7+ {[%clk 0:00:06.8]} 49... Ne7
{[%clk 0:00:02.4]} 50. Be3 {[%clk 0:00:06.4]} 50... Ke6 {[%clk 0:00:02.8]} 51.
Bc5 {[%clk 0:00:06.3]} 51... Nf5 {[%clk 0:00:02.9]} 52. Bf8 {[%clk 0:00:06.3]}
52... Nh6 {[%clk 0:00:02.8]} 53. Kd3 {[%clk 0:00:05.2]} 53... Ng8 {[%clk
0:00:03.3]} 54. Ke4 {[%clk 0:00:05.3]} 54... f5+ {[%clk 0:00:02.9]} 55. Ke3
{[%clk 0:00:05.6]} 55... Rc8 {[%clk 0:00:02.3]} 56. Ra6+ {[%clk 0:00:05.9]}
56... Kd5 {[%clk 0:00:02.3]} 57. Ra5 {[%clk 0:00:06.5]} 57... Rc3+ {[%clk
0:00:02.8]} 58. Kd2 {[%clk 0:00:05.9]} 58... Ke4 {[%clk 0:00:03.7]} 59. Rxb5
{[%clk 0:00:05.9]} 59... Rh3 {[%clk 0:00:03.4]} 60. Bd6 {[%clk 0:00:05.2]} 60...
Rh2+ {[%clk 0:00:03.7]} 61. Kc3 {[%clk 0:00:05.8]} 61... Rh3+ {[%clk 0:00:02.7]}
62. Kb4 {[%clk 0:00:06.4]} 62... Kf3 {[%clk 0:00:02.7]} 63. Rxe5 {[%clk
0:00:06.9]} 63... f4 {[%clk 0:00:03.6]} 64. Re8 {[%clk 0:00:07]} 64... Nf6
{[%clk 0:00:04.2]} 65. g8=Q {[%clk 0:00:07.2]} 65... Nxg8 {[%clk 0:00:03.5]} 66.
Rxg8 {[%clk 0:00:08.1]} 66... Ke4 {[%clk 0:00:02.9]} 67. Re8+ {[%clk 0:00:07.9]}
67... Kd5 {[%clk 0:00:03.1]} 68. Bxf4 {[%clk 0:00:07.8]} 68... Rh4 {[%clk
0:00:03.1]} 69. Rf8 {[%clk 0:00:08.5]} 1-0

[Event "Early-Titled-Tuesday-Blitz-April-23-2024"]
[Site "Chess.com"]
[Date "2024.04.23"]
[Round "6"]
[White "Fy_Rakotomaharo"]
[Black "baki83"]
[Result "1-0"]
[WhiteElo "2726"]
[BlackElo "2897"]
[TimeControl "180+1"]
[EndTime "9:09:55 PDT"]
[Termination "Fy_Rakotomaharo won by resignation"]

1. e4 {[%clk 0:03:00.9]} 1... c5 {[%clk 0:02:47.8]} 2. a4 {[%clk 0:03:00.4]}
2... Nc6 {[%clk 0:02:47]} 3. Bb5 {[%clk 0:03:00.3]} 3... g6 {[%clk 0:02:47]} 4.
f4 {[%clk 0:02:53.8]} 4... Bg7 {[%clk 0:02:47.1]} 5. Nf3 {[%clk 0:02:53.5]} 5...
Nd4 {[%clk 0:02:45.6]} 6. Bc4 {[%clk 0:02:50]} 6... e6 {[%clk 0:02:45.4]} 7. d3
{[%clk 0:02:45.4]} 7... d5 {[%clk 0:02:42.4]} 8. Ba2 {[%clk 0:02:45.4]} 8... Ne7
{[%clk 0:02:40]} 9. O-O {[%clk 0:02:37.4]} 9... b6 {[%clk 0:02:23.6]} 10. c3
{[%clk 0:02:30.9]} 10... Nxf3+ {[%clk 0:02:21.4]} 11. Qxf3 {[%clk 0:02:31.8]}
11... Bb7 {[%clk 0:02:21.7]} 12. Nd2 {[%clk 0:02:17.4]} 12... Qd7 {[%clk
0:02:11.7]} 13. Bb3 {[%clk 0:01:50.5]} 13... O-O {[%clk 0:01:56.8]} 14. Bc2
{[%clk 0:01:42.4]} 14... dxe4 {[%clk 0:01:45.1]} 15. dxe4 {[%clk 0:01:40.7]}
15... e5 {[%clk 0:01:45.6]} 16. Nc4 {[%clk 0:01:32.4]} 16... exf4 {[%clk
0:01:35.1]} 17. Bxf4 {[%clk 0:01:31.8]} 17... Ba6 {[%clk 0:01:29]} 18. Rfd1
{[%clk 0:01:28.2]} 18... Qe6 {[%clk 0:01:19.5]} 19. Nd6 {[%clk 0:01:26.5]} 19...
Nc6 {[%clk 0:01:17.5]} 20. Nb5 {[%clk 0:00:56.8]} 20... Ne5 {[%clk 0:01:16.4]}
21. Qg3 {[%clk 0:00:52.5]} 21... Qe7 {[%clk 0:00:54.8]} 22. Rd5 {[%clk
0:00:45.1]} 22... Bxb5 {[%clk 0:00:52.3]} 23. Bxe5 {[%clk 0:00:27.8]} 23... Bc6
{[%clk 0:00:50.3]} 24. Bd6 {[%clk 0:00:28]} 24... Qb7 {[%clk 0:00:49]} 25. Bxf8
{[%clk 0:00:26.1]} 25... Rxf8 {[%clk 0:00:49.4]} 26. Rd2 {[%clk 0:00:21.9]}
26... Bxe4 {[%clk 0:00:49.5]} 27. Bxe4 {[%clk 0:00:22.8]} 27... Qxe4 {[%clk
0:00:49.6]} 28. Qf3 {[%clk 0:00:18.2]} 28... Qc4 {[%clk 0:00:48.9]} 29. a5
{[%clk 0:00:16.7]} 29... Qb5 {[%clk 0:00:42.9]} 30. axb6 {[%clk 0:00:14.6]}
30... axb6 {[%clk 0:00:43.8]} 31. Ra7 {[%clk 0:00:13.5]} 31... Qe8 {[%clk
0:00:41.2]} 32. Re2 {[%clk 0:00:11.1]} 32... Qb5 {[%clk 0:00:15.3]} 33. Rb7
{[%clk 0:00:07.7]} 33... Qb3 {[%clk 0:00:13.4]} 34. h3 {[%clk 0:00:06.3]} 34...
h5 {[%clk 0:00:13.6]} 35. Qf2 {[%clk 0:00:03.7]} 35... Qd1+ {[%clk 0:00:13.3]}
36. Kh2 {[%clk 0:00:03.7]} 36... Qd6+ {[%clk 0:00:13.2]} 37. Kh1 {[%clk
0:00:03.7]} 37... Qd5 {[%clk 0:00:13.2]} 38. Ree7 {[%clk 0:00:03.4]} 38... Bh6
{[%clk 0:00:07.9]} 39. Rbd7 {[%clk 0:00:03.7]} 39... Qa2 {[%clk 0:00:05.4]} 40.
Kh2 {[%clk 0:00:03.4]} 40... Bg5 {[%clk 0:00:03.9]} 41. Re5 {[%clk 0:00:02.6]}
41... Bc1 {[%clk 0:00:03.7]} 42. Re2 {[%clk 0:00:02.3]} 42... Qb1 {[%clk
0:00:03.6]} 43. Rde7 {[%clk 0:00:02.7]} 43... Qd3 {[%clk 0:00:03.5]} 44. Re8
{[%clk 0:00:03]} 44... Bg5 {[%clk 0:00:03.6]} 45. Rxf8+ {[%clk 0:00:03.1]} 45...
Kxf8 {[%clk 0:00:04.5]} 46. Qf3 {[%clk 0:00:03.6]} 46... Bf4+ {[%clk 0:00:04.5]}
47. Kg1 {[%clk 0:00:03.2]} 47... Qd1+ {[%clk 0:00:04.6]} 48. Kf2 {[%clk
0:00:03.8]} 48... Qd6 {[%clk 0:00:04.5]} 49. Re4 {[%clk 0:00:03.7]} 49... Be5
{[%clk 0:00:04.6]} 50. Qe3 {[%clk 0:00:03.6]} 50... Bf6 {[%clk 0:00:03.7]} 51.
Qf3 {[%clk 0:00:03.7]} 51... Kg7 {[%clk 0:00:03.6]} 52. g3 {[%clk 0:00:03.8]}
52... Qd2+ {[%clk 0:00:03.7]} 53. Re2 {[%clk 0:00:04.4]} 53... Qd6 {[%clk
0:00:03.7]} 54. Kg2 {[%clk 0:00:05]} 54... b5 {[%clk 0:00:04.1]} 55. h4 {[%clk
0:00:05.4]} 55... b4 {[%clk 0:00:04.4]} 56. cxb4 {[%clk 0:00:05.1]} 56... cxb4
{[%clk 0:00:05]} 57. b3 {[%clk 0:00:06]} 57... Qd4 {[%clk 0:00:05.1]} 58. Rf2
{[%clk 0:00:06.3]} 58... Qe5 {[%clk 0:00:05.1]} 59. Qf4 {[%clk 0:00:06.2]} 59...
Qa1 {[%clk 0:00:05]} 60. Rf3 {[%clk 0:00:06.7]} 60... Qb2+ {[%clk 0:00:05]} 61.
Rf2 {[%clk 0:00:07.1]} 61... Qxb3 {[%clk 0:00:05.1]} 62. Qxf6+ {[%clk
0:00:07.1]} 62... Kg8 {[%clk 0:00:05.7]} 63. Qf3 {[%clk 0:00:06.4]} 63... Qe6
{[%clk 0:00:05.4]} 64. Re2 {[%clk 0:00:06.6]} 64... Qc4 {[%clk 0:00:05.2]} 65.
Re3 {[%clk 0:00:06.3]} 65... Qc2+ {[%clk 0:00:04.5]} 66. Kh3 {[%clk 0:00:06.4]}
66... Qc8+ {[%clk 0:00:04.4]} 67. g4 {[%clk 0:00:06.6]} 67... Kg7 {[%clk
0:00:02.2]} 68. Kg3 {[%clk 0:00:06.8]} 68... Qc7+ {[%clk 0:00:02.4]} 69. Qf4
{[%clk 0:00:07.2]} 69... Qc5 {[%clk 0:00:02.7]} 70. Qe5+ {[%clk 0:00:07.2]}
70... Qxe5+ {[%clk 0:00:02.8]} 71. Rxe5 {[%clk 0:00:08.1]} 71... hxg4 {[%clk
0:00:03.1]} 72. Kxg4 {[%clk 0:00:08.3]} 72... f6 {[%clk 0:00:03.1]} 73. Re7+
{[%clk 0:00:07.8]} 73... Kf8 {[%clk 0:00:03.2]} 74. Rb7 {[%clk 0:00:08.3]} 1-0

[Event "Early-Titled-Tuesday-Blitz-April-23-2024"]
[Site "Chess.com"]
[Date "2024.04.23"]
[Round "6"]
[White "GalaxyRoman"]
[Black "Kazmin_Semyon"]
[Result "1-0"]
[WhiteElo "2781"]
[BlackElo "2561"]
[TimeControl "180+1"]
[EndTime "9:09:59 PDT"]
[Termination "GalaxyRoman won on time"]

1. e4 {[%clk 0:03:00.9]} 1... e5 {[%clk 0:02:55.6]} 2. Nf3 {[%clk 0:03:01.3]}
2... Nc6 {[%clk 0:02:56.3]} 3. Bc4 {[%clk 0:03:01.5]} 3... Bc5 {[%clk
0:02:54.6]} 4. c3 {[%clk 0:03:02]} 4... Nf6 {[%clk 0:02:54]} 5. d3 {[%clk
0:03:02.7]} 5... a6 {[%clk 0:02:53.6]} 6. Bb3 {[%clk 0:03:01.4]} 6... h6 {[%clk
0:02:54]} 7. Nbd2 {[%clk 0:03:00.9]} 7... d6 {[%clk 0:02:51.8]} 8. h3 {[%clk
0:03:01]} 8... Ba7 {[%clk 0:02:48.9]} 9. Nf1 {[%clk 0:02:57.5]} 9... d5 {[%clk
0:02:40.2]} 10. Qe2 {[%clk 0:02:57.6]} 10... dxe4 {[%clk 0:02:33.8]} 11. dxe4
{[%clk 0:02:58.5]} 11... Qe7 {[%clk 0:02:32.8]} 12. Be3 {[%clk 0:02:56.9]} 12...
Be6 {[%clk 0:02:30]} 13. Bxa7 {[%clk 0:02:53.5]} 13... Rxa7 {[%clk 0:02:30.9]}
14. g4 {[%clk 0:02:50.8]} 14... Ra8 {[%clk 0:02:15.9]} 15. Ng3 {[%clk
0:02:50.5]} 15... g6 {[%clk 0:02:14.7]} 16. Rd1 {[%clk 0:02:29.9]} 16... Bxb3
{[%clk 0:02:09.3]} 17. axb3 {[%clk 0:02:30.8]} 17... Qe6 {[%clk 0:02:09.9]} 18.
b4 {[%clk 0:02:28.9]} 18... O-O {[%clk 0:02:05.6]} 19. O-O {[%clk 0:02:25.6]}
19... Rfd8 {[%clk 0:01:48]} 20. Rxd8+ {[%clk 0:02:25.4]} 20... Rxd8 {[%clk
0:01:48.6]} 21. Rd1 {[%clk 0:02:26]} 21... Rxd1+ {[%clk 0:01:47.3]} 22. Qxd1
{[%clk 0:02:26.9]} 22... Qd6 {[%clk 0:01:47.6]} 23. Qc1 {[%clk 0:02:18.1]} 23...
Kg7 {[%clk 0:01:34.7]} 24. g5 {[%clk 0:02:18]} 24... hxg5 {[%clk 0:00:51.8]} 25.
Qxg5 {[%clk 0:02:18.9]} 25... Nh7 {[%clk 0:00:42.3]} 26. Nf5+ {[%clk 0:02:00.2]}
26... Kg8 {[%clk 0:00:39.2]} 27. Nxd6 {[%clk 0:00:56.5]} 27... Nxg5 {[%clk
0:00:38.5]} 28. Nxg5 {[%clk 0:00:56]} 28... cxd6 {[%clk 0:00:39.2]} 29. Kf1
{[%clk 0:00:55.3]} 29... Kg7 {[%clk 0:00:27.8]} 30. Ke2 {[%clk 0:00:55.2]} 30...
Nd8 {[%clk 0:00:28.3]} 31. Kd3 {[%clk 0:00:53.6]} 31... f6 {[%clk 0:00:27.9]}
32. Nf3 {[%clk 0:00:53.7]} 32... Ne6 {[%clk 0:00:23.3]} 33. Kc4 {[%clk
0:00:43.1]} 33... b5+ {[%clk 0:00:20.6]} 34. Kd5 {[%clk 0:00:40.6]} 34... Nf4+
{[%clk 0:00:21.3]} 35. Kxd6 {[%clk 0:00:41.1]} 35... Nxh3 {[%clk 0:00:22.1]} 36.
b3 {[%clk 0:00:20.4]} 36... Nxf2 {[%clk 0:00:21.2]} 37. Nd2 {[%clk 0:00:21]}
37... Nd3 {[%clk 0:00:12.7]} 38. Kc6 {[%clk 0:00:15]} 38... f5 {[%clk
0:00:12.9]} 39. Kb6 {[%clk 0:00:11.9]} 39... f4 {[%clk 0:00:08]} 40. Kxa6 {[%clk
0:00:12]} 40... g5 {[%clk 0:00:08.9]} 41. Kxb5 {[%clk 0:00:09.5]} 41... g4
{[%clk 0:00:09.5]} 42. Kc4 {[%clk 0:00:10.1]} 42... Ne1 {[%clk 0:00:07.6]} 43.
b5 {[%clk 0:00:07.4]} 43... g3 {[%clk 0:00:07.9]} 44. b6 {[%clk 0:00:07.9]}
44... g2 {[%clk 0:00:08.6]} 45. b7 {[%clk 0:00:08.3]} 45... g1=Q {[%clk
0:00:09.1]} 46. b8=Q {[%clk 0:00:08.5]} 46... Qe3 {[%clk 0:00:02.8]} 47. Qxe5+
{[%clk 0:00:08.6]} 47... Kg6 {[%clk 0:00:03.2]} 48. Qf5+ {[%clk 0:00:09]} 48...
Kg7 {[%clk 0:00:03.7]} 49. Qe5+ {[%clk 0:00:09.4]} 49... Kg6 {[%clk 0:00:04.1]}
50. Qd6+ {[%clk 0:00:10]} 50... Kg7 {[%clk 0:00:04]} 51. Qd7+ {[%clk 0:00:09.7]}
51... Kg6 {[%clk 0:00:04.2]} 52. Qd4 {[%clk 0:00:09.3]} 52... Qe2+ {[%clk
0:00:04]} 53. Kc5 {[%clk 0:00:09.8]} 53... f3 {[%clk 0:00:04.5]} 54. Qd6+ {[%clk
0:00:08.5]} 54... Kg7 {[%clk 0:00:04.9]} 55. Qe5+ {[%clk 0:00:08.8]} 55... Kg6
{[%clk 0:00:05.4]} 56. Qf5+ {[%clk 0:00:09.1]} 56... Kg7 {[%clk 0:00:06.2]} 57.
Qg5+ {[%clk 0:00:07.8]} 57... Kf7 {[%clk 0:00:06.5]} 58. Qf5+ {[%clk 0:00:07.8]}
58... Kg7 {[%clk 0:00:07.1]} 59. Nxf3 {[%clk 0:00:08.4]} 59... Nxf3 {[%clk
0:00:06.9]} 60. Qd7+ {[%clk 0:00:08.5]} 60... Kg6 {[%clk 0:00:07]} 61. Qd6+
{[%clk 0:00:08.7]} 61... Kg5 {[%clk 0:00:06.8]} 62. Qd5+ {[%clk 0:00:09.2]}
62... Kf4 {[%clk 0:00:06.8]} 63. b4 {[%clk 0:00:06.3]} 63... Nd2 {[%clk
0:00:04.6]} 64. b5 {[%clk 0:00:02.3]} 64... Nxe4+ {[%clk 0:00:04.5]} 65. Kc6
{[%clk 0:00:02.8]} 65... Nxc3 {[%clk 0:00:02.5]} 66. Qd4+ {[%clk 0:00:03.2]}
66... Ne4 {[%clk 0:00:02.7]} 67. b6 {[%clk 0:00:03.5]} 67... Qc2+ {[%clk
0:00:03.2]} 68. Kb7 {[%clk 0:00:03.6]} 68... Qc1 {[%clk 0:00:02.3]} 69. Kb8
{[%clk 0:00:02.1]} 69... Qc6 {[%clk 0:00:02.4]} 70. b7 {[%clk 0:00:02.4]} 70...
Kf5 {[%clk 0:00:03.1]} 71. Ka7 {[%clk 0:00:02.5]} 71... Qc7 {[%clk 0:00:01.9]}
72. Qd5+ {[%clk 0:00:02.6]} 72... Kf4 {[%clk 0:00:01.6]} 73. Ka8 {[%clk
0:00:02.2]} 1-0

[Event "Early-Titled-Tuesday-Blitz-April-23-2024"]
[Site "Chess.com"]
[Date "2024.04.23"]
[Round "6"]
[White "ravengelic"]
[Black "alexrustemov"]
[Result "0-1"]
[WhiteElo "2666"]
[BlackElo "2877"]
[TimeControl "180+1"]
[EndTime "9:10:08 PDT"]
[Termination "alexrustemov won by resignation"]

1. d4 {[%clk 0:03:00.9]} 1... d5 {[%clk 0:02:59.9]} 2. Bf4 {[%clk 0:03:01.2]}
2... Nf6 {[%clk 0:02:59.7]} 3. e3 {[%clk 0:03:01.8]} 3... c5 {[%clk 0:03:00.1]}
4. c3 {[%clk 0:03:01.7]} 4... Nc6 {[%clk 0:03:00.4]} 5. Nf3 {[%clk 0:03:02.3]}
5... Bg4 {[%clk 0:03:00.7]} 6. Nbd2 {[%clk 0:03:00.7]} 6... e6 {[%clk
0:03:00.7]} 7. Qa4 {[%clk 0:03:00.9]} 7... Nd7 {[%clk 0:03:00.1]} 8. h3 {[%clk
0:02:59.9]} 8... Bxf3 {[%clk 0:02:59.2]} 9. Nxf3 {[%clk 0:03:00.8]} 9... a6
{[%clk 0:02:56.3]} 10. Qd1 {[%clk 0:02:58.2]} 10... Be7 {[%clk 0:02:55]} 11. Bd3
{[%clk 0:02:57.6]} 11... O-O {[%clk 0:02:54.8]} 12. O-O {[%clk 0:02:58.1]} 12...
Rc8 {[%clk 0:02:53.8]} 13. Ne5 {[%clk 0:02:58]} 13... Nf6 {[%clk 0:02:43.6]} 14.
Qf3 {[%clk 0:02:54]} 14... Bd6 {[%clk 0:02:28.9]} 15. Rad1 {[%clk 0:02:49.1]}
15... Qc7 {[%clk 0:02:25.2]} 16. Nxc6 {[%clk 0:02:35.2]} 16... Bxf4 {[%clk
0:02:22.2]} 17. Qxf4 {[%clk 0:02:34.9]} 17... Qxc6 {[%clk 0:02:15.9]} 18. Rfe1
{[%clk 0:02:28.3]} 18... Rfd8 {[%clk 0:02:15.1]} 19. Bb1 {[%clk 0:02:19.8]}
19... Qc7 {[%clk 0:02:11.7]} 20. Qh4 {[%clk 0:02:19.7]} 20... h6 {[%clk
0:02:05]} 21. f3 {[%clk 0:02:14.7]} 21... e5 {[%clk 0:01:55.4]} 22. Qg3 {[%clk
0:02:10.7]} 22... Re8 {[%clk 0:01:52.9]} 23. Qh4 {[%clk 0:01:43]} 23... Re7
{[%clk 0:01:48.1]} 24. dxc5 {[%clk 0:01:43.3]} 24... Qxc5 {[%clk 0:01:46]} 25.
Qf2 {[%clk 0:01:44]} 25... b5 {[%clk 0:01:39.7]} 26. a3 {[%clk 0:01:44.5]} 26...
a5 {[%clk 0:01:39.7]} 27. e4 {[%clk 0:01:34]} 27... dxe4 {[%clk 0:01:25.6]} 28.
Qxc5 {[%clk 0:01:32.8]} 28... Rxc5 {[%clk 0:01:25.7]} 29. Bxe4 {[%clk
0:01:33.7]} 29... g6 {[%clk 0:01:20]} 30. Rd6 {[%clk 0:01:31.3]} 30... Kg7
{[%clk 0:01:19.4]} 31. Kf2 {[%clk 0:01:30.9]} 31... b4 {[%clk 0:01:13.1]} 32.
cxb4 {[%clk 0:01:26.6]} 32... axb4 {[%clk 0:01:13.4]} 33. a4 {[%clk 0:01:27.3]}
33... b3 {[%clk 0:01:07.9]} 34. Rb6 {[%clk 0:01:22]} 34... Ra5 {[%clk
0:01:04.8]} 35. Rb4 {[%clk 0:01:12.1]} 35... Nxe4+ {[%clk 0:00:49.9]} 36. Rexe4
{[%clk 0:01:09.3]} 36... Rea7 {[%clk 0:00:49.5]} 37. Rec4 {[%clk 0:01:06.7]}
37... g5 {[%clk 0:00:39.3]} 38. Ke3 {[%clk 0:01:06.7]} 38... f5 {[%clk
0:00:33.6]} 39. Kd3 {[%clk 0:01:06.9]} 39... Rd5+ {[%clk 0:00:25.1]} 40. Kc3
{[%clk 0:01:07]} 40... Rd1 {[%clk 0:00:24.9]} 41. Kxb3 {[%clk 0:01:07.4]} 41...
Rg1 {[%clk 0:00:22.9]} 42. Rc2 {[%clk 0:01:07.1]} 42... Kg6 {[%clk 0:00:19.7]}
43. Ka2 {[%clk 0:01:00.4]} 43... f4 {[%clk 0:00:18.2]} 44. Re4 {[%clk
0:00:38.7]} 44... Ra5 {[%clk 0:00:17.4]} 45. Rce2 {[%clk 0:00:35.5]} 45... Kh5
{[%clk 0:00:17]} 46. b3 {[%clk 0:00:34.1]} 46... Kh4 {[%clk 0:00:17.2]} 47. Ka3
{[%clk 0:00:29.6]} 47... Kg3 {[%clk 0:00:16.9]} 48. Kb4 {[%clk 0:00:29.8]} 48...
Ra8 {[%clk 0:00:16.5]} 49. Rxe5 {[%clk 0:00:24]} 49... Rxg2 {[%clk 0:00:16.8]}
50. Re1 {[%clk 0:00:20.2]} 50... Kxf3 {[%clk 0:00:15.9]} 51. Rc5 {[%clk
0:00:19.5]} 51... Kg3 {[%clk 0:00:15.7]} 52. Rc3+ {[%clk 0:00:18.1]} 52... f3
{[%clk 0:00:11.7]} 53. Re6 {[%clk 0:00:18.2]} 53... h5 {[%clk 0:00:11.1]} 54.
Rg6 {[%clk 0:00:16.6]} 54... g4 {[%clk 0:00:10.6]} 55. hxg4 {[%clk 0:00:17.5]}
55... hxg4 {[%clk 0:00:11.3]} 56. a5 {[%clk 0:00:17.9]} 56... Kh2 {[%clk
0:00:09.5]} 57. Rh6+ {[%clk 0:00:17.9]} 57... Kg1 {[%clk 0:00:07.2]} 58. Rc1+
{[%clk 0:00:16.6]} 58... Kf2 {[%clk 0:00:06.9]} 59. Rf6 {[%clk 0:00:12.9]} 59...
Kg3 {[%clk 0:00:06.5]} 60. Rc3 {[%clk 0:00:12.4]} 60... Ra2 {[%clk 0:00:06.4]}
61. Rc5 {[%clk 0:00:09.9]} 61... Kg2 {[%clk 0:00:04.1]} 62. Rcf5 {[%clk
0:00:10.5]} 62... f2 {[%clk 0:00:03.6]} 63. Kc3 {[%clk 0:00:05.5]} 63... g3
{[%clk 0:00:04.3]} 64. b4 {[%clk 0:00:04.9]} 64... Ra1 {[%clk 0:00:04.7]} 65.
Kb2 {[%clk 0:00:04.2]} 65... f1=Q {[%clk 0:00:05]} 66. Rxf1 {[%clk 0:00:05.1]}
66... Rxf1 {[%clk 0:00:05.4]} 67. Rxf1 {[%clk 0:00:05.1]} 67... Kxf1 {[%clk
0:00:05.5]} 68. Kb3 {[%clk 0:00:05.5]} 68... g2 {[%clk 0:00:06]} 69. Ka4 {[%clk
0:00:06.4]} 69... g1=Q {[%clk 0:00:06.6]} 70. b5 {[%clk 0:00:07.3]} 70... Qd4+
{[%clk 0:00:06.7]} 71. Kb3 {[%clk 0:00:07.2]} 71... Rxa5 {[%clk 0:00:07.6]} 0-1